Cogmind - Beta 17 @@@ ROGUE MODE // 2026.07.10 @ 19:50:32 Player: welikiq Result: Destroyed by 46-C85(R) with Subdweller Laser Performance ------------- Evolutions (0) 0 Regions Visited (3) 600 Robots Destroyed (30) 150 Value Destroyed (491) 491 Prototype IDs (1) 20 Alien Tech Used (0) 0 Bonus (0) 0 TOTAL SCORE: 1261 Bonus ------- None Cogmind --------- Core Integrity 0/250 Matter 300/300 Energy 250/250 System Corruption 0% Temperature Cool (6) Movement Core (450) Ox8 Location -10/Subcaves Parts ------- > --- POWER (1) -------- Ion Engine > --- PROPULSION (2) --- (None) > --- UTILITY (2) ------ Large Storage Unit > --- WEAPON (2) ------- (None) > --- INVENTORY (15) --- Ion Engine Ion Engine Ion Engine Light Ion Engine Huge Storage Unit Huge Storage Unit Targeting Computer Targeting Computer Small Laser Grenade Launcher Peak State ------------ > --- POWER ------------ Ion Engine > --- PROPULSION ------- Light Treads > --- UTILITY ---------- Large Storage Unit Experimental Sensor Array > --- WEAPON ----------- Assault Rifle Light Assault Rifle > --- INVENTORY -------- Ion Engine Ion Engine Light Ion Engine Huge Storage Unit Huge Storage Unit Targeting Computer Targeting Computer Small Laser Grenade Launcher [Rating: 14] Favorites ----------- Power Ion Engine Engine Ion Engine Propulsion Light Treads Treads Light Treads Utility Large Storage Unit Device Structural Scanner Storage Large Storage Unit Processor Targeting Computer Weapon Assault Rifle Energy Gun Medium Laser Ballistic Gun Assault Rifle Build | -11 -10 -10 -10 ------- Run | Yrd Mat Min Sub Slots Evolved . | . . . . Power . | . . . . Propulsion . | . . . . Utility . | . . . . Weapon . | . . . . Parts Attached 15 | 7 6 2 . Power 4 | 1 2 1 . Engine 4 | 1 2 1 . Core . | . . . . Reactor . | . . . . Propulsion 2 | 2 . . . Treads 2 | 2 . . . Leg . | . . . . Wheel . | . . . . Hover . | . . . . Flight . | . . . . Utility 5 | 1 3 1 . Device 2 | . 1 1 . Storage 2 | 1 1 . . Processor 1 | . 1 . . Hackware . | . . . . Protection . | . . . . Artifact . | . . . . Weapon 4 | 3 1 . . Energy Gun 2 | 2 . . . Energy Cannon . | . . . . Ballistic Gun 2 | 1 1 . . Ballistic Cannon . | . . . . Launcher . | . . . . Special Weapon . | . . . . Impact Weapon . | . . . . Slashing Weapon . | . . . . Piercing Weapon . | . . . . Special Melee Weapon . | . . . . Unidentified Prototypes 1 | . . 1 . Parts Lost 5 | . . 1 4 Power . | . . . . Propulsion 2 | . . 1 1 Utility 1 | . . . 1 Weapon 2 | . . . 2 Highest Loss Streak 4 | . . 1 4 To Critical Strikes . | . . . . Average Backups 7 | . 5 9 10 Power 2 | . 1 3 4 Propulsion . | . . . . Utility 3 | . 2 4 4 Weapon 1 | . 1 2 2 Tool/Special . | . . . . Unused Backups 6 | . . . 6 Power 1 | . . . 1 Propulsion . | . . . . Utility 4 | . . . 4 Weapon 1 | . . . 1 Tool/Special . | . . . . Average Slot Usage (%) 91 | . 98 86 76 Engine 14 | . 14 14 14 Treads 20 | . 27 14 12 Device 8 | . 4 11 14 Storage 14 | . 14 14 14 Processor 5 | . 8 2 . Energy Gun 1 | . 2 . . Ballistic Gun 26 | . 25 28 21 Peak Build Rating 14 | 6 8 14 7 Average Rating 6 | 4 6 6 6 On Entrance 5 | . 6 8 7 Avg Prop Armor Cover (%) . | . . . . Naked Turns . | . . . . Heaviest Build 30 | 14 30 29 29 Greatest Support 40 | 40 40 40 20 Greatest Overweight (x) 8 | . . 1 8 Average Overweight (x) . | . . . 1 Largest Inventory Capacity 15 | 8 15 15 15 Average Capacity 14 | 6 14 15 15 Most Carried 10 | 1 10 10 10 Average Carried 7 | . 5 9 10 Final Capacity 15 | 8 15 15 15 Final Carried 10 | 1 10 10 10 Class Distribution -------------------- 100% | Mutant Dominant Class ---------------- Mutant | -10/Materials Mutant | -10/Mines Mutant | -10/Subcaves Resources | -11 -10 -10 -10 ----------- Run | Yrd Mat Min Sub Matter Collected 689 | 157 434 98 . Remotely . | . . . . Salvage Created 771 | 28 627 116 . Parts 65 | 6 45 14 . Haulers Intercepted 2 | . 2 . . Recyclers Shooed 1 | . . 1 . Parts Field Recycled . | . . . . Retrieved Matter . | . . . . Parts Self-Destructed . | . . . . Prevented . | . . . . Parts Restored . | . . . . Kills | -11 -10 -10 -10 ------- Run | Yrd Mat Min Sub Combat Hostiles Destroyed 23 | . 16 7 . Guns 23 | . 16 7 . Classes Destroyed 7 | 1 6 . . Tunneler 2 | 2 . . . Hauler 2 | . 2 . . Recycler 1 | . 1 . . Operator 1 | . 1 . . Watcher 1 | . 1 . . Swarmer 15 | . 9 6 . Grunt 8 | . 7 1 . Best Kill Streak 5 | 2 5 3 . Combat Bots Only 5 | . 5 3 . Max Kills in Single Turn 1 | 1 1 1 . Gunslinging . | . . . . Exploded . | . . . . Melee . | . . . . Uniques/NPCs Destroyed . | . . . . Combat | -11 -10 -10 -10 -------- Run | Yrd Mat Min Sub Hostile Shots Fired 123 | . 80 21 22 Missed 30 | . 17 5 8 Hits 93 | . 63 16 14 Projectile 93 | . 63 16 14 Damage Taken 1029 | . 606 128 295 Core 254 | . 149 22 83 Absorbed by Shields . | . . . . Regen/Repaired (Parts) 99 | . 99 . . Core Remaining (%) 100 | 100 . . . Volleys Fired 85 | 4 61 16 4 Largest 2 | 2 2 2 2 Hottest 70 | 70 70 40 40 Shots Fired 169 | 8 122 32 7 Gun 169 | 8 122 32 7 Cannon . | . . . . Launcher . | . . . . Special . | . . . . Kinetic 161 | 4 118 32 7 Thermal 8 | 4 4 . . Explosive . | . . . . Electromagnetic . | . . . . Robot Hit Streak 22 | 2 22 13 5 Robot Miss Streak 3 | 1 3 2 3 Penetration Max . | . . . . Secondary Targets 2 | . . 2 . Max Gunslinging Chain 1 | . . 1 . Shots Hit Robots 117 | 5 87 22 3 Core Hits 50 | 2 35 11 2 Critical Kills . | . . . . Critical Parts Destroyed 1 | . . 1 . Critical Strikes 1 | . . 1 . Destroy 1 | . . 1 . Melee Attacks . | . . . . Impact . | . . . . Slashing . | . . . . Piercing . | . . . . Sneak Attacks . | . . . . Combat Hostiles . | . . . . Follow-up Attacks . | . . . . Damage Inflicted 1333 | 60 1001 237 35 Guns 1309 | 60 987 227 35 Cannons . | . . . . Explosions . | . . . . Melee . | . . . . Ramming 24 | . 14 10 . Kinetic 1248 | 24 962 227 35 Thermal 61 | 36 25 . . Explosive . | . . . . Electromagnetic . | . . . . Impact . | . . . . Slashing . | . . . . Piercing . | . . . . Highest Corruption . | . . . . Average Corruption . | . . . . Corruption Purged . | . . . . Corruption Blocked . | . . . . Overload Shots . | . . . . Overflow Damage . | . . . . Projectiles . | . . . . Explosions . | . . . . Melee . | . . . . Knockbacks . | . . . . Impact . | . . . . Kinetic . | . . . . Secondary . | . . . . Self-Inflicted Damage . | . . . . Shots . | . . . . Rammed 5 | . 3 2 . Targets Rammed 5 | . 3 2 . Kicked . | . . . . Crushed . | . . . . Highest Temperature 36 | 18 36 6 . Average Temperature 9 | 10 9 6 . Received Heat Transfer 258 | . 186 12 60 Siege Activations . | . . . . Martial Activations . | . . . . Shielding Activations . | . . . . Robots Disrupted . | . . . . Combat Hostiles . | . . . . Robots Corrupted . | . . . . Combat Hostiles . | . . . . Parts Fried . | . . . . Impact Corruptions . | . . . . Robots Melted . | . . . . Combat Hostiles . | . . . . Parts Melted . | . . . . Heat Transferred 185 | 111 74 . . Parts Sabotaged . | . . . . Parts Stolen . | . . . . Parts Stripped . | . . . . Power Chain Reactions . | . . . . Alert | -11 -10 -10 -10 ------- Run | Yrd Mat Min Sub Maximum Alert Level . | . . . . Low Security (%) 100 | 100 100 100 . Level 1 . | . . . . Level 2 . | . . . . Level 3 . | . . . . Level 4 . | . . . . Level 5 . | . . . . High Security . | . . . . Max Security . | . . . . Peak Influence 150 | 5 150 143 . Initial 48 | . . 48 . Average 51 | . 68 41 . Influence Increases 685 | 10 470 205 . Destroy 0b10 Robot/C 460 | . 320 140 . Destroy 0b10 Robot/NC 35 | 10 25 . . Destroy Leader 86 | . 66 20 . Successful Hack 14 | . 14 . . Lose Combat Pursuer 90 | . 45 45 . Influence Decreases 685 | 10 344 331 . Entered New Map 78 | . . 78 . Time Decay 597 | 10 344 243 . Lost Part 10 | . . 10 . Squads Dispatched 3 | . 3 . . Investigation 1 | . 1 . . Extermination . | . . . . Reinforcement 2 | . 2 . . Assault . | . . . . Garrison . | . . . . Intercept . | . . . . Searches Triggered . | . . . . Construction Impeded . | . . . . Haulers Reinforced . | . . . . Active Scanning Responses . | . . . . Cargo Convoy Interrupts . | . . . . Stealth | -11 -10 -10 -10 --------- Run | Yrd Mat Min Sub Distress Signals 2 | . 2 . . Communications Jammed . | . . . . Distress Signals . | . . . . Times Spotted 40 | . 29 9 2 Peak Tracking Total 5 | . 5 4 2 Tactical Retreats 6 | . 3 3 . Traps | -11 -10 -10 -10 ------- Run | Yrd Mat Min Sub Traps Triggered 1 | . 1 . . Indirectly . | . . . . Trap Hack Attempts . | . . . . Triggered . | . . . . Disarmed . | . . . . Reprogrammed . | . . . . Reused . | . . . . Traps Extracted . | . . . . Installed . | . . . . Triggered . | . . . . Machines | -11 -10 -10 -10 ---------- Run | Yrd Mat Min Sub Machines Disabled . | . . . . Max in Single Turn . | . . . . Machines Repaired . | . . . . Machines Dismantled . | . . . . Machines Sabotaged . | . . . . Overloaded Fab Kills . | . . . . Hacking | -11 -10 -10 -10 --------- Run | Yrd Mat Min Sub Machines Accessed 3 | . 3 . . Terminals 2 | . 2 . . Fabricators . | . . . . Repair Stations 1 | . 1 . . Recycling Units . | . . . . Scanalyzers . | . . . . Garrison Access . | . . . . Total Hacks 16 | . 16 . . Successful 6 | . 6 . . Failed 10 | . 10 . . Catastrophic . | . . . . Database Lockouts . | . . . . Manual 10 | . 10 . . Terminals 10 | . 10 . . Fabricators . | . . . . Repair Stations 6 | . 6 . . Recycling Units . | . . . . Scanalyzers . | . . . . Garrison Access . | . . . . Terminal Hacks 2 | . 2 . . Robot Analysis 2 | . 2 . . Fabricator Hacks . | . . . . Repair Station Hacks 4 | . 4 . . Scan Component 2 | . 2 . . Repair 2 | . 2 . . Recycling Unit Hacks . | . . . . Scanalyzer . | . . . . Garrison Access Hacks . | . . . . Unauthorized Hacks . | . . . . Terminals . | . . . . Fabricators . | . . . . Repair Stations . | . . . . Recycling Units . | . . . . Scanalyzers . | . . . . Garrison Access . | . . . . Data Cores Recovered . | . . . . Used . | . . . . Hacking Detections 3 | . 3 . . Full Trace Events . | . . . . Feedback Events . | . . . . Feedback Blocked . | . . . . Robot Schematics Acquired . | . . . . Robots Built . | . . . . Authchips . | . . . . Time . | . . . . Total Robot Build Rating . | . . . . Part Schematics Acquired . | . . . . Parts Built . | . . . . Authchips . | . . . . Time . | . . . . Total Part Build Rating . | . . . . Part Studies Acquired . | . . . . Parts Repaired 2 | . 2 . . Time 52 | . 52 . . Parts Recycled . | . . . . Recycled Matter . | . . . . Retrieved Matter . | . . . . Retrieved Components . | . . . . Parts Scanalyzed . | . . . . Part Schematics Acquired . | . . . . Parts Damaged . | . . . . Bothacking | -11 -10 -10 -10 ------------ Run | Yrd Mat Min Sub Used RIF Installer . | . . . . Robots Hacked . | . . . . Non-combat . | . . . . Combat . | . . . . Robot Hacks Applied . | . . . . Relay Couplers Released . | . . . . Fabnet Peak Effective % . | . . . . Robots Rewired . | . . . . Allies Hacked . | . . . . Hacks Repelled . | . . . . Allies | -11 -10 -10 -10 -------- Run | Yrd Mat Min Sub Total Allies . | . . . . Largest Group . | . . . . Highest-Rated Group . | . . . . Highest-Rated Ally . | . . . . Total Orders . | . . . . Ally Attacks . | . . . . Total Damage . | . . . . Kills . | . . . . Allies Corrupted . | . . . . Allies Melted . | . . . . Intel | -11 -10 -10 -10 ------- Run | Yrd Mat Min Sub Active Infowar (turns) 1161 | . 294 797 70 Sensors 1 | . . 1 . Structural 1160 | . 294 796 70 Robot Analysis Total 2 | . 2 . . Derelict Logs Recovered 2 | . . 2 . Drone Launches . | . . . . Drone Recoveries . | . . . . Exploration | -11 -10 -10 -10 ------------- Run | Yrd Mat Min Sub Turns Passed 2153 | 122 973 986 72 Spaces Moved 908 | 65 420 399 24 Core 7 | 5 . . 2 Treads 901 | 60 420 399 22 Legs . | . . . . Wheels . | . . . . Hover . | . . . . Flight . | . . . . Fastest Speed 50 | 50 160 160 240 Average Speed 194 | 151 160 233 257 Slowest Speed 450 | 160 160 240 450 Overloaded Moves . | . . . . Propulsion Burnouts . | . . . . Robots Hopped . | . . . . Potential Cave-ins . | . . . . Cave-ins Triggered . | . . . . Exploration Rate (%) 44 | 5 78 92 4 Regions Visited 3 Branch Regions 2 Pre-discovered Areas 1 | . . 1 . Known Exits Taken . | . . . . Unknown Exits Taken 3 | 1 1 1 . Scrap Searched 1 | . . 1 . Spaces Dug . | . . . . Terrain Destroyed . | . . . . Melee . | . . . . Projectile . | . . . . AOE . | . . . . Terrain Rammed . | . . . . Walls Destroyed . | . . . . Machines Disabled . | . . . . Actions | -11 -10 -10 -10 --------- Run | Yrd Mat Min Sub Total 1130 | 77 605 420 28 Wait 107 | 1 106 . . Move 905 | 64 419 398 24 Hop . | . . . . Pick Up 8 | 1 7 . . Fast Attach 10 | 6 4 . . Attach . | . . . . Detach . | . . . . Swap 9 | 1 4 4 . Drop 1 | . 1 . . Fire 85 | 4 61 16 4 Melee . | . . . . Ram . | . . . . Kick . | . . . . Crush 5 | . 3 2 . Escape Stasis . | . . . . Rewire . | . . . . Trap . | . . . . Miscellaneous . | . . . . Route ------- -11/Scrapyard -10/Materials (discovered 4 exits: [*Mat x2] / [*Min] / [*Sub]) -10/Mines (discovered 3 exits: [*Mat x2] / [*Sub]) -10/Subcaves History --------- Turn | Location | Event 40 | -11/Scrapyard | Discovered new exit (range 15) 123 | -11/Scrapyard | Entered Materials 311 | -10/Materials | Build established: Mutant 382 | -10/Materials | Discovered new exit (range 7) 450 | -10/Materials | Discovered new exit (range 3) 635 | -10/Materials | Repaired Lgt. Treads 662 | -10/Materials | Repaired Assault Rifle 781 | -10/Materials | Discovered new exit (range 8) 867 | -10/Materials | Core integrity fell below 50% 1066 | -10/Materials | Discovered new exit (range 12) 1096 | -10/Materials | Entered Mines 1435 | -10/Mines | Found a damaged Exp. Sensor Array with a note attached 1440 | -10/Mines | Found Prototype Device 1440 | -10/Mines | Identified Exp. Sensor Array 1450 | -10/Mines | Discovered new exit (range 10) 1551 | -10/Mines | Learned location of 1 exit from Materials 1611 | -10/Mines | Found a hidden stash of uninstalled traps 1675 | -10/Mines | Discovered new exit (range 8) 1683 | -10/Mines | Learned location of Recycling (-9) 1728 | -10/Mines | Discovered new exit (range 10) 2082 | -10/Mines | Entered Subcaves 2083 | -10/Subcaves | Approached by a straggling Scientist 2142 | -10/Subcaves | Core integrity fell below 20% 2154 | -10/Subcaves | Destroyed by 46-C85(R) with Subdweller Laser Last Messages --------------- 01912_ Acquired 10 matter. 02032_ Slammed into K-01 Serf. LOCATION=UNKNOWN AMBIENT_HEAT=-10 GOAL=ESCAPE 02083_ ED-720(c): "Thank the algorithms! I was beginning to lose hope I'd never make it past all the Subs lurking out here." 02086_ ED-720(c): "Hey, let me tag along and I can get us both out of this nasty situation. At least I think I can... The group I got separated from was talking about a shortcut back to the UFD." ED-720(c): "I think it's somewhere northwest of here" 02133_ Lgt. Assault Rifle destroyed. 02136_ Assault Rifle destroyed. 02144_ Lgt. Treads destroyed. 02145_ ED-720(c) destroyed. 02152_ Structural Scanner destroyed. Map ----- +----------------------------------------------------+ | ??????????????????## ### ???????????????? | | ??????????????????##### ###???????????????? | | ???????????????????#### ##???????????????? | | ???????????????????### ##???????????????? | | ??????????????????### ####???????????????? | | ?????????????????#### #####???????????????? | | ?????????????????### ####?????????????????? | | ?????????????????## #####????????????????? | | ?????????????????### ######???????????????? | | ?????????????????##### ### # ###???????????????? | | ????????????????###### #### ##???????????????? | | ????????????????## ## ##???????????????? | | ????????????????## ###???????????????? | | ????????????????## #### ##???????????????? | | ????????????????## ### ##???????????????? | | ????????????????## ### ##???????????????? | | ????????????????## ##### ####??????????????? | | ????????????????## # ###??????????????? | | ????????????????## ###?????????????? | | ????????????????#### %= ####????????????? | | ????????????????#### # ## R ###????????????? | | ??????????????????##### ### R ##????????????? | | ?????????????????? #### ## " "?????? | | ?????????????????????## ### " " ##?????? | | ?????????????????????## ### """ "###?????? | | ?????????????????????### @##### ?? ## """ ?????? | | ????????????????????? # #### ??? ####" ????????? | | ????????????????????? ##?????? #####?????????? | | ??????????????????? #?????? "#????????????? | | ???????????????## ## ## ##???????"?????????????? | | ???????????????#############?????????????????????? | | ???????????????#############?????????????????????? | | ?????????????????????????????????????????????????? | | ?????????????????????????????????????????????????? | | ?????????????????????????????????????????????????? | | ?????????????????????????????????????????????????? | | ?????????????????????????????????????????????????? | | ?????????????????????????????????????????????????? | | ?????????????????????????????????????????????????? | | ?????????????????????????????????????????????????? | | ?????????????????????????????????????????????????? | | ?????????????????????????????????????????????????? | | ?????????????????????????????????????????????????? | | ?????????????????????????????????????????????????? | | ?????????????????????????????????????????????????? | | ?????????????????????????????????????????????????? | | | | | | | | | +----------------------------------------------------+ Best States ------------- Heat Dissipation 25 Energy Generation 10 Energy Capacity 250 Matter Stores 300 Matter Capacity 300 Sight Range 16 Terrain Scan Density 10 Evasion (%) 40 Targeting Accuracy 5 Recoil Reduction 2 Item Schematics ----------------- None Robot Schematics ------------------ None Fabricated ------------ Nothing Repaired ---------- Lgt. Treads | 72% | -10/Materials Assault Rifle | 40% | -10/Materials Studied --------- None Alien Tech Used ----------------- None Achievements -------------- None Challenges ------------ None Game ------ Seed TechForceHammer Manual? 0 Play Time 00:15:26 Cumulative 51.1 hours Start 2026.07.10 @ 15:50:46 End 2026.07.10 @ 19:50:32 Sessions 1 Manual Loads 0 Difficulty Rogue Special Mode None Game No. 70 Rogue 70 Adventurer 0 Explorer 0 Win Type - Total 0 Types 0/0/0/0/0/0/0/0/0/0 Lore% 9 Gallery% 23 Achievement% 19 Wizard Run 0 Options --------- Layout 1 ASCII 0 Keyboard 1 Movement Numpad Keybinds 0 Fullscreen 1 Font 32/SmallcapsGlow Map View 50x35 Zoom Use 2% Tactical HUD 1 Map Filters NONE Filters NONE Steam 1 RUN: 8e2f0d53-81be-493e-a490-ddc2344b4d6a